[Event "*** Titled Tuesday Blitz"]
[Site "Chess.com"]
[Date "2021.02.09"]
[Round "5"]
[White "GMBenjaminBok"]
[Black "FMKonstantin_Twitch"]
[Result "1-0"]
[WhiteElo "2993"]
[BlackElo "2622"]
[TimeControl "180+1"]
[EndTime "10:55:26 PST"]
[Termination "GMBenjaminBok won by resignation"]

1. d4 {[%clk 0:03:00.9]} 1... Nf6 {[%clk 0:02:58.2]} 2. c4 {[%clk 0:03:00.3]}
2... e6 {[%clk 0:02:54.9]} 3. Nc3 {[%clk 0:02:59.9]} 3... Bb4 {[%clk 0:02:52.7]}
4. Qc2 {[%clk 0:03:00.3]} 4... O-O {[%clk 0:02:50.5]} 5. e4 {[%clk 0:02:59.7]}
5... c5 {[%clk 0:02:48.9]} 6. e5 {[%clk 0:02:56.7]} 6... cxd4 {[%clk 0:02:44.1]}
7. a3 {[%clk 0:02:56.5]} 7... dxc3 {[%clk 0:02:12.6]} 8. axb4 {[%clk 0:02:56.2]}
8... Ng4 {[%clk 0:02:02.6]} 9. Nf3 {[%clk 0:02:24.3]} 9... Nc6 {[%clk
0:01:59.1]} 10. Qxc3 {[%clk 0:02:15.8]} 10... Qb6 {[%clk 0:01:58.2]} 11. c5
{[%clk 0:01:55.9]} 11... Qxb4 {[%clk 0:01:55.9]} 12. Qxb4 {[%clk 0:01:19.7]}
12... Nxb4 {[%clk 0:01:56.8]} 13. Ra4 {[%clk 0:01:19.5]} 13... a5 {[%clk
0:01:35.9]} 14. Bd2 {[%clk 0:01:19.8]} 14... Nc2+ {[%clk 0:01:14.6]} 15. Ke2
{[%clk 0:01:06.2]} 15... f5 {[%clk 0:01:07.9]} 16. exf6 {[%clk 0:00:58.8]} 16...
Nxf6 {[%clk 0:01:06.3]} 17. Kd1 {[%clk 0:00:53.8]} 1-0

[Event "*** Titled Tuesday Blitz"]
[Site "Chess.com"]
[Date "2021.02.09"]
[Round "5"]
[White "VMikhalevski"]
[Black "Mikasinski"]
[Result "1-0"]
[WhiteElo "2701"]
[BlackElo "2481"]
[TimeControl "180+1"]
[EndTime "10:55:28 PST"]
[Termination "VMikhalevski won by checkmate"]

1. d4 {[%clk 0:03:00.9]} 1... Nf6 {[%clk 0:02:58.8]} 2. Nf3 {[%clk 0:03:00.9]}
2... g6 {[%clk 0:02:58.1]} 3. g3 {[%clk 0:03:00.8]} 3... Bg7 {[%clk 0:02:57.7]}
4. Bg2 {[%clk 0:03:00.9]} 4... O-O {[%clk 0:02:58.6]} 5. O-O {[%clk 0:03:00.9]}
5... d6 {[%clk 0:02:58.5]} 6. b3 {[%clk 0:03:00.8]} 6... e5 {[%clk 0:02:58]} 7.
dxe5 {[%clk 0:02:58.5]} 7... dxe5 {[%clk 0:02:48.9]} 8. Ba3 {[%clk 0:02:57]}
8... Re8 {[%clk 0:02:44.2]} 9. Qxd8 {[%clk 0:02:54.4]} 9... Rxd8 {[%clk
0:02:45.1]} 10. Nc3 {[%clk 0:02:54.6]} 10... Nc6 {[%clk 0:02:40.6]} 11. Rad1
{[%clk 0:02:52.1]} 11... Bf5 {[%clk 0:02:40.6]} 12. Nh4 {[%clk 0:02:51.1]} 12...
Bxc2 {[%clk 0:02:38.5]} 13. Rc1 {[%clk 0:02:39]} 13... Bf5 {[%clk 0:02:31.4]}
14. Nxf5 {[%clk 0:02:38.6]} 14... gxf5 {[%clk 0:02:32.3]} 15. Bxc6 {[%clk
0:02:36.3]} 15... bxc6 {[%clk 0:02:33.2]} 16. Rc2 {[%clk 0:02:35.4]} 16... Bf8
{[%clk 0:02:24.9]} 17. Bxf8 {[%clk 0:02:29.2]} 17... Kxf8 {[%clk 0:02:25]} 18.
Na4 {[%clk 0:02:29.2]} 18... Ne8 {[%clk 0:02:03.9]} 19. Rfc1 {[%clk 0:02:26.6]}
19... Rd6 {[%clk 0:01:55]} 20. Kf1 {[%clk 0:02:17.8]} 20... Rad8 {[%clk
0:01:53.6]} 21. Ke1 {[%clk 0:02:17.8]} 21... Ke7 {[%clk 0:01:37.5]} 22. Rxc6
{[%clk 0:02:16]} 22... Rd2 {[%clk 0:01:33.8]} 23. R6c2 {[%clk 0:02:14.5]} 23...
Rxc2 {[%clk 0:01:34.2]} 24. Rxc2 {[%clk 0:02:14.2]} 24... Rd6 {[%clk 0:01:24.4]}
25. Rc5 {[%clk 0:02:08.6]} 25... f6 {[%clk 0:01:22.1]} 26. Ra5 {[%clk
0:02:08.5]} 26... a6 {[%clk 0:01:17.2]} 27. Nc5 {[%clk 0:02:08.5]} 27... Rd5
{[%clk 0:01:16.6]} 28. b4 {[%clk 0:02:08.7]} 28... Nd6 {[%clk 0:01:01.6]} 29.
Rxa6 {[%clk 0:02:06.7]} 29... Nc4 {[%clk 0:00:45.8]} 30. Re6+ {[%clk 0:01:57.6]}
30... Kf7 {[%clk 0:00:45.6]} 31. Rc6 {[%clk 0:01:57.2]} 31... Nb2 {[%clk
0:00:45]} 32. Rxc7+ {[%clk 0:01:56.7]} 32... Kg6 {[%clk 0:00:45.5]} 33. f4
{[%clk 0:01:45.7]} 33... Rd1+ {[%clk 0:00:43.2]} 34. Kf2 {[%clk 0:01:45.5]}
34... e4 {[%clk 0:00:44.1]} 35. Ne6 {[%clk 0:01:42.7]} 35... Ra1 {[%clk
0:00:31.9]} 36. Nf8+ {[%clk 0:01:42.4]} 36... Kh5 {[%clk 0:00:30.7]} 37. Rxh7+
{[%clk 0:01:42.2]} 37... Kg4 {[%clk 0:00:31.4]} 38. h3# {[%clk 0:01:42.2]} 1-0

[Event "*** Titled Tuesday Blitz"]
[Site "Chess.com"]
[Date "2021.02.09"]
[Round "5"]
[White "CraiggoryC"]
[Black "canary2016"]
[Result "1-0"]
[WhiteElo "2181"]
[BlackElo "1988"]
[TimeControl "180+1"]
[EndTime "10:55:38 PST"]
[Termination "CraiggoryC won by checkmate"]

1. e4 {[%clk 0:02:58.5]} 1... e5 {[%clk 0:02:58.9]} 2. Nf3 {[%clk 0:02:58.7]}
2... Nf6 {[%clk 0:02:58.1]} 3. Nxe5 {[%clk 0:02:58.4]} 3... d6 {[%clk
0:02:58.2]} 4. Nf3 {[%clk 0:02:59.1]} 4... Nxe4 {[%clk 0:02:57.7]} 5. Nc3 {[%clk
0:02:59.7]} 5... Nxc3 {[%clk 0:02:57.1]} 6. dxc3 {[%clk 0:03:00.6]} 6... Be7
{[%clk 0:02:57.7]} 7. Be3 {[%clk 0:03:01.1]} 7... O-O {[%clk 0:02:57.8]} 8. Qd2
{[%clk 0:03:01.5]} 8... Nd7 {[%clk 0:02:58]} 9. O-O-O {[%clk 0:03:01.8]} 9...
Nf6 {[%clk 0:02:58.2]} 10. Bd3 {[%clk 0:02:57.9]} 10... c5 {[%clk 0:02:57.6]}
11. Kb1 {[%clk 0:02:53.4]} 11... Be6 {[%clk 0:02:57.5]} 12. Ng5 {[%clk
0:02:29.8]} 12... a6 {[%clk 0:02:29.2]} 13. h4 {[%clk 0:02:12.5]} 13... c4
{[%clk 0:02:27.7]} 14. Nxe6 {[%clk 0:02:08.1]} 14... fxe6 {[%clk 0:02:26.7]} 15.
Bxc4 {[%clk 0:02:08.3]} 15... d5 {[%clk 0:02:24.5]} 16. Bd3 {[%clk 0:02:03.9]}
16... b5 {[%clk 0:02:23.8]} 17. f3 {[%clk 0:01:47.7]} 17... Rb8 {[%clk
0:02:19.1]} 18. g4 {[%clk 0:01:37.7]} 18... Nd7 {[%clk 0:02:16.8]} 19. Bf4
{[%clk 0:01:20.3]} 19... Rb7 {[%clk 0:02:11]} 20. g5 {[%clk 0:01:03.8]} 20... e5
{[%clk 0:02:02.2]} 21. Bh2 {[%clk 0:00:44.5]} 21... Rxf3 {[%clk 0:02:01.1]} 22.
Be4 {[%clk 0:00:43.2]} 22... dxe4 {[%clk 0:01:57.4]} 23. Qd5+ {[%clk 0:00:42.9]}
23... Kh8 {[%clk 0:01:52.5]} 24. Qxb7 {[%clk 0:00:42.7]} 24... e3 {[%clk
0:01:19.6]} 25. Qxf3 {[%clk 0:00:41.1]} 25... Qe8 {[%clk 0:01:16]} 26. Qxe3
{[%clk 0:00:38.1]} 26... Bc5 {[%clk 0:01:15.7]} 27. Qe4 {[%clk 0:00:33.4]} 27...
Nb6 {[%clk 0:01:12.6]} 28. Qxe5 {[%clk 0:00:32.1]} 28... Qc8 {[%clk 0:01:10.4]}
29. Qb8 {[%clk 0:00:30]} 29... Qxb8 {[%clk 0:01:09]} 30. Bxb8 {[%clk 0:00:30.9]}
30... Nc4 {[%clk 0:01:08.9]} 31. Rd8+ {[%clk 0:00:30.3]} 31... Bf8 {[%clk
0:01:09.3]} 32. Rxf8# {[%clk 0:00:30.3]} 1-0

[Event "*** Titled Tuesday Blitz"]
[Site "Chess.com"]
[Date "2021.02.09"]
[Round "5"]
[White "mr65"]
[Black "NaciSAN"]
[Result "0-1"]
[WhiteElo "2107"]
[BlackElo "2308"]
[TimeControl "180+1"]
[EndTime "10:55:42 PST"]
[Termination "NaciSAN won by resignation"]

1. e4 {[%clk 0:00:06.2]} 1... e6 {[%clk 0:02:52.5]} 2. d4 {[%clk 0:00:06]} 2...
d5 {[%clk 0:02:52.8]} 3. Nc3 {[%clk 0:00:06.6]} 3... Bb4 {[%clk 0:02:50.5]} 4.
e5 {[%clk 0:00:07.5]} 4... c5 {[%clk 0:02:50.5]} 5. a3 {[%clk 0:00:08.3]} 5...
Bxc3+ {[%clk 0:02:50.4]} 6. bxc3 {[%clk 0:00:08.8]} 6... Qc7 {[%clk 0:02:51.1]}
7. Nf3 {[%clk 0:00:08.6]} 7... Ne7 {[%clk 0:02:48.7]} 8. Be2 {[%clk 0:00:08.5]}
8... Nbc6 {[%clk 0:02:46.5]} 9. O-O {[%clk 0:00:09.4]} 9... O-O {[%clk
0:02:45.4]} 10. Be3 {[%clk 0:00:10.1]} 10... cxd4 {[%clk 0:02:39.8]} 11. cxd4
{[%clk 0:00:09.4]} 11... Nf5 {[%clk 0:02:39]} 12. Bd3 {[%clk 0:00:09.3]} 12...
Bd7 {[%clk 0:02:33.3]} 13. Bxf5 {[%clk 0:00:08.4]} 13... exf5 {[%clk 0:02:33.1]}
14. Ng5 {[%clk 0:00:07.4]} 14... Be6 {[%clk 0:02:32.5]} 15. Qh5 {[%clk
0:00:06.2]} 15... h6 {[%clk 0:02:32.7]} 16. Nh3 {[%clk 0:00:06.1]} 16... Qe7
{[%clk 0:01:56.6]} 17. Rfe1 {[%clk 0:00:07]} 17... Rfc8 {[%clk 0:01:53]} 18.
Bxh6 {[%clk 0:00:06.8]} 18... Nxd4 {[%clk 0:01:40.8]} 19. Bxg7 {[%clk
0:00:05.5]} 19... Kxg7 {[%clk 0:01:35.8]} 20. Ng5 {[%clk 0:00:04.5]} 20... Rh8
{[%clk 0:01:33.2]} 21. Qd1 {[%clk 0:00:04.2]} 21... Qxg5 {[%clk 0:01:25.3]} 22.
Qxd4 {[%clk 0:00:05.1]} 22... Rh4 {[%clk 0:01:22.6]} 23. Re3 {[%clk 0:00:04.9]}
23... Rxd4 {[%clk 0:01:21.8]} 0-1

[Event "*** Titled Tuesday Blitz"]
[Site "Chess.com"]
[Date "2021.02.09"]
[Round "5"]
[White "dropstoneDP"]
[Black "Pertinhez76"]
[Result "1-0"]
[WhiteElo "2967"]
[BlackElo "2015"]
[TimeControl "180+1"]
[EndTime "10:55:44 PST"]
[Termination "dropstoneDP won by resignation"]

1. e4 {[%clk 0:03:00.9]} 1... e6 {[%clk 0:02:58.9]} 2. Qe2 {[%clk 0:02:58.1]}
2... c5 {[%clk 0:02:57.9]} 3. g3 {[%clk 0:02:58.2]} 3... Nc6 {[%clk 0:02:57.1]}
4. c3 {[%clk 0:02:58]} 4... d6 {[%clk 0:02:56.1]} 5. Bg2 {[%clk 0:02:58.4]} 5...
Nf6 {[%clk 0:02:55.6]} 6. Nf3 {[%clk 0:02:58.9]} 6... g6 {[%clk 0:02:55.6]} 7.
O-O {[%clk 0:02:58.7]} 7... Bg7 {[%clk 0:02:56.1]} 8. d4 {[%clk 0:02:59.1]} 8...
cxd4 {[%clk 0:02:55.5]} 9. cxd4 {[%clk 0:03:00]} 9... O-O {[%clk 0:02:52.6]} 10.
Nc3 {[%clk 0:03:00.5]} 10... h6 {[%clk 0:02:50.1]} 11. Rd1 {[%clk 0:02:59.5]}
11... Qe7 {[%clk 0:02:12.9]} 12. h3 {[%clk 0:02:53.1]} 12... a6 {[%clk
0:02:08.4]} 13. b3 {[%clk 0:02:51.4]} 13... Rd8 {[%clk 0:02:07]} 14. Bb2 {[%clk
0:02:49]} 14... Rb8 {[%clk 0:01:36.6]} 15. Rac1 {[%clk 0:02:48.3]} 15... Bd7
{[%clk 0:01:35.8]} 16. e5 {[%clk 0:02:46.8]} 16... Nd5 {[%clk 0:01:23.6]} 17.
Ne4 {[%clk 0:02:43]} 17... dxe5 {[%clk 0:01:22.8]} 18. dxe5 {[%clk 0:02:43.9]}
18... Qb4 {[%clk 0:01:11.6]} 19. Nf6+ {[%clk 0:02:38.2]} 19... Kh8 {[%clk
0:01:06.1]} 20. Nxd5 {[%clk 0:02:28.5]} 20... exd5 {[%clk 0:01:06.1]} 21. Rxd5
{[%clk 0:02:27.8]} 21... Be6 {[%clk 0:01:03.1]} 22. Rdd1 {[%clk 0:02:27.3]}
22... Rxd1+ {[%clk 0:00:55.2]} 23. Rxd1 {[%clk 0:02:28.2]} 23... Qa5 {[%clk
0:00:55.2]} 24. Nd4 {[%clk 0:02:02.7]} 24... Qxa2 {[%clk 0:00:50]} 25. Nxe6
{[%clk 0:02:02.2]} 25... fxe6 {[%clk 0:00:49.4]} 26. Qc2 {[%clk 0:01:56.2]}
26... Nxe5 {[%clk 0:00:38.6]} 27. Kh1 {[%clk 0:01:45.9]} 27... Rg8 {[%clk
0:00:27.1]} 28. Ra1 {[%clk 0:01:44.4]} 28... Qxa1+ {[%clk 0:00:24.8]} 29. Bxa1
{[%clk 0:01:44.9]} 29... Kh7 {[%clk 0:00:17.9]} 30. Qc7 {[%clk 0:01:43.5]} 30...
Nd3 {[%clk 0:00:13.7]} 31. Kg1 {[%clk 0:01:40.5]} 31... Kh8 {[%clk 0:00:11.3]}
32. Bxg7+ {[%clk 0:01:39.5]} 32... Rxg7 {[%clk 0:00:11.5]} 33. Qd8+ {[%clk
0:01:40.1]} 1-0

[Event "*** Titled Tuesday Blitz"]
[Site "Chess.com"]
[Date "2021.02.09"]
[Round "5"]
[White "GP9isback23"]
[Black "esapunov"]
[Result "0-1"]
[WhiteElo "2533"]
[BlackElo "2731"]
[TimeControl "180+1"]
[EndTime "10:55:52 PST"]
[Termination "esapunov won by resignation"]

1. d4 {[%clk 0:03:00.9]} 1... Nf6 {[%clk 0:02:59.3]} 2. Nf3 {[%clk 0:03:00.6]}
2... g6 {[%clk 0:02:59.7]} 3. e3 {[%clk 0:03:00.5]} 3... Bg7 {[%clk 0:02:59.9]}
4. Be2 {[%clk 0:03:01.4]} 4... O-O {[%clk 0:03:00.1]} 5. O-O {[%clk 0:03:02.3]}
5... d6 {[%clk 0:03:00.8]} 6. c4 {[%clk 0:03:02.3]} 6... Nbd7 {[%clk 0:03:01.2]}
7. Nc3 {[%clk 0:03:02.8]} 7... e5 {[%clk 0:03:01.9]} 8. a3 {[%clk 0:02:54.9]}
8... Re8 {[%clk 0:03:01.2]} 9. b4 {[%clk 0:02:54.1]} 9... e4 {[%clk 0:02:52.2]}
10. Nd2 {[%clk 0:02:53.7]} 10... h5 {[%clk 0:02:52]} 11. b5 {[%clk 0:02:52.2]}
11... Nf8 {[%clk 0:02:51.8]} 12. a4 {[%clk 0:02:50.8]} 12... Bf5 {[%clk
0:02:51.9]} 13. Ba3 {[%clk 0:02:50.7]} 13... Ne6 {[%clk 0:02:48.6]} 14. a5
{[%clk 0:02:49]} 14... h4 {[%clk 0:02:46.1]} 15. Nd5 {[%clk 0:02:33.6]} 15... h3
{[%clk 0:02:38.1]} 16. g3 {[%clk 0:02:29.8]} 16... Ng5 {[%clk 0:02:38.1]} 17.
Nxf6+ {[%clk 0:02:22.4]} 17... Bxf6 {[%clk 0:02:35.7]} 18. Qb3 {[%clk
0:02:03.5]} 18... Qd7 {[%clk 0:02:33.1]} 19. Rfc1 {[%clk 0:02:02.9]} 19... Bg4
{[%clk 0:02:30.4]} 20. Qd1 {[%clk 0:02:02.9]} 20... Bxe2 {[%clk 0:02:28.1]} 21.
Qxe2 {[%clk 0:02:03.8]} 21... Qf5 {[%clk 0:02:25.5]} 22. c5 {[%clk 0:01:58.7]}
22... d5 {[%clk 0:02:24.2]} 23. Rab1 {[%clk 0:01:34.1]} 23... Be7 {[%clk
0:02:22.1]} 24. Bb4 {[%clk 0:01:31.5]} 24... b6 {[%clk 0:02:03.2]} 25. cxb6
{[%clk 0:01:24.8]} 25... cxb6 {[%clk 0:02:02.2]} 26. Bxe7 {[%clk 0:01:23.9]}
26... Rxe7 {[%clk 0:02:02]} 27. axb6 {[%clk 0:01:04.7]} 27... axb6 {[%clk
0:02:01.5]} 28. Rc2 {[%clk 0:01:04.9]} 28... Rea7 {[%clk 0:01:59.7]} 29. Rbc1
{[%clk 0:01:04]} 29... Ra2 {[%clk 0:01:56.8]} 30. Qd1 {[%clk 0:00:45.2]} 30...
Kg7 {[%clk 0:01:44.5]} 31. Rxa2 {[%clk 0:00:30.6]} 31... Rxa2 {[%clk 0:01:43.4]}
32. Rc2 {[%clk 0:00:19]} 32... Nf3+ {[%clk 0:01:32.5]} 33. Nxf3 {[%clk
0:00:18.7]} 33... Qxf3 {[%clk 0:01:28.4]} 34. Rd2 {[%clk 0:00:12.2]} 0-1

[Event "*** Titled Tuesday Blitz"]
[Site "Chess.com"]
[Date "2021.02.09"]
[Round "5"]
[White "ridnani2021"]
[Black "MaevskiyNikolay"]
[Result "0-1"]
[WhiteElo "2354"]
[BlackElo "2535"]
[TimeControl "180+1"]
[EndTime "10:55:55 PST"]
[Termination "MaevskiyNikolay won by checkmate"]

1. e4 {[%clk 0:03:00.9]} 1... Nc6 {[%clk 0:02:59.6]} 2. d4 {[%clk 0:03:00.2]}
2... d5 {[%clk 0:02:59.9]} 3. e5 {[%clk 0:03:00.6]} 3... Bf5 {[%clk 0:02:59.5]}
4. Nf3 {[%clk 0:03:00.8]} 4... Qd7 {[%clk 0:02:58.1]} 5. Be3 {[%clk 0:02:52.6]}
5... f6 {[%clk 0:02:56.9]} 6. exf6 {[%clk 0:02:49.5]} 6... gxf6 {[%clk
0:02:56.7]} 7. c3 {[%clk 0:02:50.1]} 7... a6 {[%clk 0:02:55.3]} 8. Nbd2 {[%clk
0:02:46.9]} 8... e5 {[%clk 0:02:54.1]} 9. dxe5 {[%clk 0:02:42.4]} 9... fxe5
{[%clk 0:02:54]} 10. Nh4 {[%clk 0:02:42.3]} 10... O-O-O {[%clk 0:02:47.8]} 11.
Be2 {[%clk 0:02:37.3]} 11... Be6 {[%clk 0:02:46.8]} 12. a4 {[%clk 0:02:32.3]}
12... Be7 {[%clk 0:02:46.2]} 13. Nhf3 {[%clk 0:02:31.8]} 13... h6 {[%clk
0:02:44]} 14. Rb1 {[%clk 0:02:20.9]} 14... Nf6 {[%clk 0:02:38]} 15. O-O {[%clk
0:02:19.5]} 15... d4 {[%clk 0:02:33]} 16. cxd4 {[%clk 0:02:18.4]} 16... exd4
{[%clk 0:02:33]} 17. Bf4 {[%clk 0:02:18.7]} 17... d3 {[%clk 0:02:30.9]} 18. Bxd3
{[%clk 0:02:09.5]} 18... Qxd3 {[%clk 0:02:30.4]} 19. b4 {[%clk 0:02:08.3]} 19...
Nd4 {[%clk 0:02:24.5]} 20. Re1 {[%clk 0:01:59.5]} 20... Nxf3+ {[%clk 0:02:23.6]}
21. Qxf3 {[%clk 0:01:56]} 21... Qxf3 {[%clk 0:01:51.3]} 22. Nxf3 {[%clk
0:01:56.9]} 22... Bf5 {[%clk 0:01:50.7]} 23. Rbc1 {[%clk 0:01:55.2]} 23... Bd6
{[%clk 0:01:50.3]} 24. Be3 {[%clk 0:01:49.6]} 24... Nd5 {[%clk 0:01:45.3]} 25.
b5 {[%clk 0:01:46.2]} 25... axb5 {[%clk 0:01:42.2]} 26. axb5 {[%clk 0:01:47.1]}
26... Nxe3 {[%clk 0:01:38.1]} 27. fxe3 {[%clk 0:01:48]} 27... Rhe8 {[%clk
0:01:25.4]} 28. b6 {[%clk 0:01:42]} 28... c6 {[%clk 0:01:24.5]} 29. Ra1 {[%clk
0:01:41.1]} 29... Bc5 {[%clk 0:01:08.1]} 30. Ra8+ {[%clk 0:01:36.8]} 30... Kd7
{[%clk 0:01:07.8]} 31. Ra7 {[%clk 0:01:37.7]} 31... Rb8 {[%clk 0:00:59.8]} 32.
Rd1+ {[%clk 0:01:36.4]} 32... Kc8 {[%clk 0:00:55.8]} 33. Ra5 {[%clk 0:01:34.4]}
33... Bxe3+ {[%clk 0:00:54]} 34. Kh1 {[%clk 0:01:34.9]} 34... Bg4 {[%clk
0:00:48.6]} 35. Re1 {[%clk 0:01:31.7]} 35... Bxf3 {[%clk 0:00:46.4]} 36. gxf3
{[%clk 0:01:32.6]} 36... Kd7 {[%clk 0:00:46.2]} 37. Rd1+ {[%clk 0:01:31.8]}
37... Ke6 {[%clk 0:00:43.2]} 38. Rh5 {[%clk 0:01:24.9]} 38... Kf7 {[%clk
0:00:40.3]} 39. Rg1 {[%clk 0:01:22]} 39... Rg8 {[%clk 0:00:39.2]} 40. Rf5+
{[%clk 0:01:21.3]} 40... Ke6 {[%clk 0:00:38.1]} 41. Rh5 {[%clk 0:01:18]} 41...
Rxg1# {[%clk 0:00:37.5]} 0-1

[Event "*** Titled Tuesday Blitz"]
[Site "Chess.com"]
[Date "2021.02.09"]
[Round "5"]
[White "RD4ever"]
[Black "Bigfish1995"]
[Result "1-0"]
[WhiteElo "2863"]
[BlackElo "2987"]
[TimeControl "180+1"]
[EndTime "10:56:00 PST"]
[Termination "RD4ever won by resignation"]

1. d4 {[%clk 0:03:00.9]} 1... d5 {[%clk 0:02:58.6]} 2. c4 {[%clk 0:03:00.4]}
2... c6 {[%clk 0:02:58.6]} 3. Nf3 {[%clk 0:03:00.2]} 3... Nf6 {[%clk 0:02:58.2]}
4. Nc3 {[%clk 0:02:55.6]} 4... dxc4 {[%clk 0:02:56.9]} 5. e4 {[%clk 0:02:51.6]}
5... b5 {[%clk 0:02:55.7]} 6. Be2 {[%clk 0:02:51.5]} 6... e6 {[%clk 0:02:49]} 7.
O-O {[%clk 0:02:48.3]} 7... Bb7 {[%clk 0:02:47.8]} 8. e5 {[%clk 0:02:40.4]} 8...
Nd5 {[%clk 0:02:46.4]} 9. Ne4 {[%clk 0:02:40.4]} 9... Nd7 {[%clk 0:02:45.9]} 10.
Nfg5 {[%clk 0:02:28.4]} 10... h6 {[%clk 0:02:40.4]} 11. Nxe6 {[%clk 0:02:21.3]}
11... fxe6 {[%clk 0:02:41.3]} 12. Bh5+ {[%clk 0:02:21.6]} 12... Ke7 {[%clk
0:02:41.2]} 13. Qg4 {[%clk 0:02:22.2]} 13... Nxe5 {[%clk 0:01:49.5]} 14. dxe5
{[%clk 0:02:19.1]} 14... Kd7 {[%clk 0:01:49.9]} 15. Bf7 {[%clk 0:01:50.6]} 15...
Qe7 {[%clk 0:01:45.3]} 16. Qg6 {[%clk 0:01:38.4]} 16... Rd8 {[%clk 0:01:38.5]}
17. Nd6 {[%clk 0:01:26.7]} 17... Ba6 {[%clk 0:01:25.7]} 18. Bd2 {[%clk
0:01:20.7]} 18... h5 {[%clk 0:01:21.4]} 19. Bg5 {[%clk 0:01:15.3]} 19... Rh6
{[%clk 0:01:20.8]} 20. Bxe7 {[%clk 0:01:08.8]} 20... Rxg6 {[%clk 0:01:20.3]} 21.
Bxd8 {[%clk 0:01:09.7]} 21... Rg4 {[%clk 0:01:16.2]} 22. Bxh5 {[%clk 0:00:58]}
22... Rd4 {[%clk 0:01:07.8]} 23. Ba5 {[%clk 0:00:57.5]} 23... b4 {[%clk
0:01:05.1]} 24. Rfd1 {[%clk 0:00:56.2]} 24... Rh4 {[%clk 0:00:41.9]} 25. Be2
{[%clk 0:00:51.8]} 25... Bxd6 {[%clk 0:00:32.7]} 26. exd6 {[%clk 0:00:52.7]}
26... Kxd6 {[%clk 0:00:29.9]} 27. Bxb4+ {[%clk 0:00:52.2]} 27... c5 {[%clk
0:00:28.9]} 28. Bc3 {[%clk 0:00:52.4]} 1-0

[Event "*** Titled Tuesday Blitz"]
[Site "Chess.com"]
[Date "2021.02.09"]
[Round "5"]
[White "zmeeed67"]
[Black "starplatinum2030"]
[Result "1-0"]
[WhiteElo "2320"]
[BlackElo "2121"]
[TimeControl "180+1"]
[EndTime "10:56:02 PST"]
[Termination "zmeeed67 won by resignation"]

1. d4 {[%clk 0:01:31.5]} 1... d5 {[%clk 0:02:35.6]} 2. c4 {[%clk 0:01:28.1]}
2... dxc4 {[%clk 0:02:36.5]} 3. Nf3 {[%clk 0:01:27.4]} 3... c5 {[%clk
0:02:34.3]} 4. e3 {[%clk 0:01:26.9]} 4... Nf6 {[%clk 0:02:33.1]} 5. Bxc4 {[%clk
0:01:19.9]} 5... e6 {[%clk 0:02:31.3]} 6. O-O {[%clk 0:01:19]} 6... a6 {[%clk
0:02:28.6]} 7. e4 {[%clk 0:01:18.8]} 7... Nxe4 {[%clk 0:02:21.8]} 8. d5 {[%clk
0:01:18.2]} 8... b5 {[%clk 0:02:18.1]} 9. dxe6 {[%clk 0:01:09.5]} 9... Qxd1
{[%clk 0:02:12.5]} 10. exf7+ {[%clk 0:01:08.5]} 10... Ke7 {[%clk 0:01:38]} 11.
Rxd1 {[%clk 0:01:09.4]} 11... Bb7 {[%clk 0:01:37.4]} 12. Bd3 {[%clk 0:01:03]}
12... Nd7 {[%clk 0:01:34.3]} 13. Re1 {[%clk 0:00:59.9]} 13... Nf6 {[%clk
0:01:28.4]} 14. Nc3 {[%clk 0:00:59]} 14... Kxf7 {[%clk 0:01:26]} 15. Nxe4 {[%clk
0:00:56]} 15... c4 {[%clk 0:01:23]} 16. Neg5+ {[%clk 0:00:52.6]} 16... Kg8
{[%clk 0:01:20]} 17. Bf5 {[%clk 0:00:53.5]} 17... Bd5 {[%clk 0:01:14.8]} 18. Bf4
{[%clk 0:00:44]} 18... Bb4 {[%clk 0:00:56.1]} 19. Red1 {[%clk 0:00:37.9]} 19...
g6 {[%clk 0:00:53.8]} 20. Rxd5 {[%clk 0:00:30.8]} 20... Nxd5 {[%clk 0:00:48.3]}
21. Be6+ {[%clk 0:00:30.8]} 21... Kg7 {[%clk 0:00:48.1]} 22. Bxd5 {[%clk
0:00:31.2]} 22... Rad8 {[%clk 0:00:45.8]} 23. Be5+ {[%clk 0:00:31.1]} 23... Kh6
{[%clk 0:00:45.5]} 24. Nf7+ {[%clk 0:00:30.7]} 24... Kh5 {[%clk 0:00:45.7]} 1-0

[Event "*** Titled Tuesday Blitz"]
[Site "Chess.com"]
[Date "2021.02.09"]
[Round "5"]
[White "bangchess21"]
[Black "BilodeauA"]
[Result "0-1"]
[WhiteElo "2729"]
[BlackElo "2902"]
[TimeControl "180+1"]
[EndTime "10:56:06 PST"]
[Termination "BilodeauA won by resignation"]

1. d4 {[%clk 0:03:00.9]} 1... d5 {[%clk 0:02:59.9]} 2. Bf4 {[%clk 0:03:01.1]}
2... Nf6 {[%clk 0:02:59.9]} 3. e3 {[%clk 0:03:01.5]} 3... e6 {[%clk 0:03:00.4]}
4. Nd2 {[%clk 0:03:01.2]} 4... c5 {[%clk 0:03:01]} 5. c3 {[%clk 0:03:01.4]} 5...
Nc6 {[%clk 0:03:01.8]} 6. Ngf3 {[%clk 0:03:01.4]} 6... Be7 {[%clk 0:03:02.2]} 7.
Ne5 {[%clk 0:03:00.8]} 7... Nd7 {[%clk 0:02:59.8]} 8. Nxc6 {[%clk 0:02:50.7]}
8... bxc6 {[%clk 0:03:00.7]} 9. Bd3 {[%clk 0:02:49.7]} 9... O-O {[%clk
0:03:00.1]} 10. O-O {[%clk 0:02:49.6]} 10... Qb6 {[%clk 0:02:30.8]} 11. Qc2
{[%clk 0:02:34.8]} 11... h6 {[%clk 0:02:29.1]} 12. Rfe1 {[%clk 0:02:22]} 12...
Ba6 {[%clk 0:02:27.2]} 13. Rab1 {[%clk 0:02:14.7]} 13... cxd4 {[%clk 0:02:09.3]}
14. exd4 {[%clk 0:02:01.1]} 14... c5 {[%clk 0:02:09.3]} 15. Bxa6 {[%clk
0:01:49.3]} 15... Qxa6 {[%clk 0:02:07.9]} 16. dxc5 {[%clk 0:01:49.9]} 16... Nxc5
{[%clk 0:01:56.6]} 17. Be3 {[%clk 0:01:11.1]} 17... Rac8 {[%clk 0:01:52.3]} 18.
Bxc5 {[%clk 0:00:58.1]} 18... Bxc5 {[%clk 0:01:51.5]} 19. Nb3 {[%clk 0:00:58.6]}
19... Bb6 {[%clk 0:01:51.6]} 20. Red1 {[%clk 0:00:15.3]} 20... Rc4 {[%clk
0:01:49.7]} 21. a3 {[%clk 0:00:12.6]} 21... Rfc8 {[%clk 0:01:48.1]} 22. Qd3
{[%clk 0:00:09.7]} 22... Qa4 {[%clk 0:01:42.6]} 23. Nd2 {[%clk 0:00:09.9]} 23...
Rf4 {[%clk 0:01:38.1]} 24. Nf3 {[%clk 0:00:08.8]} 24... Qe4 {[%clk 0:01:38]} 25.
Qxe4 {[%clk 0:00:06]} 25... dxe4 {[%clk 0:01:36.5]} 26. Nd4 {[%clk 0:00:06.3]}
26... e5 {[%clk 0:01:37.1]} 27. Nb5 {[%clk 0:00:04.5]} 27... Rxf2 {[%clk
0:01:33.9]} 28. Kh1 {[%clk 0:00:03.4]} 28... e3 {[%clk 0:01:32.8]} 29. Re1
{[%clk 0:00:03.4]} 29... Rd8 {[%clk 0:01:30.7]} 30. c4 {[%clk 0:00:01.6]} 30...
Rdd2 {[%clk 0:01:29.6]} 31. Rg1 {[%clk 0:00:02.2]} 31... Rxb2 {[%clk 0:01:28.3]}
32. Rxb2 {[%clk 0:00:02.2]} 32... Rxb2 {[%clk 0:01:28.9]} 33. Nd6 {[%clk
0:00:02.5]} 33... e2 {[%clk 0:01:27.6]} 34. Re1 {[%clk 0:00:02.7]} 34... Bf2
{[%clk 0:01:27.9]} 0-1